[Event "Titled Tuesday Blitz January 18 2022"]
[White "Jobava, Baadur"]
[Black "Di Nicolantonio, Lucas"]
[WhiteFideId "13601520"]
[BlackFideId "680460"]
[WhiteElo "2617"]
[BlackElo "2381"]
[Result "1-0"]
[Round "01"]
[TimeControl "180+1"]
[Date "2022.01.18"]
[WhiteClock "0:01:23"]
[BlackClock "0:00:02"]

1. d4 {[%clk 0:02:54]}  g6 {[%clk 0:02:57]} 2. e4 {[%clk 0:02:44]}  Bg7 {[%clk 0:02:56]} 3. c4 {[%clk 0:02:44]}  d6 {[%clk 0:02:56]} 4. Nc3 {[%clk 0:02:44]}  e5 {[%clk 0:02:56]} 5. Nge2 {[%clk 0:02:34]}  Nc6 {[%clk 0:02:45]} 6. Be3 {[%clk 0:02:34]}  Nh6 {[%clk 0:02:42]} 7. f3 {[%clk 0:02:33]}  f5 {[%clk 0:02:40]} 8. d5 {[%clk 0:02:31]}  Ne7 {[%clk 0:02:39]} 9. h3 {[%clk 0:02:31]}  Nf7 {[%clk 0:02:31]} 10. Qc2 {[%clk 0:02:30]}  c5 {[%clk 0:02:21]} 11. dxc6 {[%clk 0:02:28]}  bxc6 {[%clk 0:02:19]} 12. O-O-O {[%clk 0:02:27]}  Qa5 {[%clk 0:02:11]} 13. Kb1 {[%clk 0:02:25]}  Rb8 {[%clk 0:02:06]} 14. Nc1 {[%clk 0:02:25]}  O-O {[%clk 0:01:58]} 15. Nb3 {[%clk 0:02:25]}  Qc7 {[%clk 0:01:44]} 16. c5 {[%clk 0:02:26]}  d5 {[%clk 0:01:41]} 17. exd5 {[%clk 0:02:25]}  cxd5 {[%clk 0:01:41]} 18. Nxd5 {[%clk 0:02:26]}  Nxd5 {[%clk 0:01:42]} 19. Rxd5 {[%clk 0:02:27]}  Be6 {[%clk 0:01:42]} 20. Bc4 {[%clk 0:02:27]}  Bxd5 {[%clk 0:01:14]} 21. Bxd5 {[%clk 0:02:28]}  Kh8 {[%clk 0:01:14]} 22. Rd1 {[%clk 0:02:26]}  Nd8 {[%clk 0:01:08]} 23. c6 {[%clk 0:02:19]}  Rc8 {[%clk 0:00:55]} 24. Nc5 {[%clk 0:02:17]}  Re8 {[%clk 0:00:37]} 25. Rc1 {[%clk 0:02:02]}  Qd6 {[%clk 0:00:25]} 26. Rd1 {[%clk 0:01:46]}  Qc7 {[%clk 0:00:25]} 27. Bb3 {[%clk 0:01:42]}  Nxc6 {[%clk 0:00:17]} 28. Rd7 {[%clk 0:01:42]}  Qb8 {[%clk 0:00:08]} 29. Qc4 {[%clk 0:01:26]}  Nd4 {[%clk 0:00:05]} 30. Qf7 {[%clk 0:01:23]}  Rg8 {[%clk 0:00:05]} 31. Bh6 {[%clk 0:01:23]}  Nxb3 {[%clk 0:00:02]} 32. Bxg7+ {[%clk 0:01:23]} 1-0


[Site "https://www.chess.com"]

[Event "Titled Tuesday Blitz January 18 2022"]
[White "Karas, Marek"]
[Black "Visakh N R"]
[WhiteFideId "14928558"]
[BlackFideId "25012223"]
[WhiteElo "2270"]
[BlackElo "2454"]
[Result "0-1"]
[Round "01"]
[TimeControl "180+1"]
[Date "2022.01.18"]
[WhiteClock "0:00:01"]
[BlackClock "0:00:35"]

1. d4 {[%clk 0:03:00]}  Nf6 {[%clk 0:02:56]} 2. Nf3 {[%clk 0:02:57]}  e6 {[%clk 0:02:54]} 3. Bf4 {[%clk 0:02:57]}  Bd6 {[%clk 0:02:51]} 4. Bg3 {[%clk 0:02:55]}  O-O {[%clk 0:02:50]} 5. e3 {[%clk 0:02:54]}  b6 {[%clk 0:02:50]} 6. Nbd2 {[%clk 0:02:54]}  Bb7 {[%clk 0:02:50]} 7. Bd3 {[%clk 0:02:54]}  h6 {[%clk 0:02:46]} 8. c3 {[%clk 0:02:54]}  Qe7 {[%clk 0:02:45]} 9. Qe2 {[%clk 0:02:53]}  Bxg3 {[%clk 0:02:44]} 10. hxg3 {[%clk 0:02:52]}  d6 {[%clk 0:02:44]} 11. e4 {[%clk 0:02:52]}  e5 {[%clk 0:02:44]} 12. d5 {[%clk 0:02:48]}  c6 {[%clk 0:02:42]} 13. c4 {[%clk 0:02:46]}  Na6 {[%clk 0:02:37]} 14. a3 {[%clk 0:02:40]}  Nc5 {[%clk 0:02:37]} 15. b4 {[%clk 0:02:39]}  Nxd3+ {[%clk 0:02:36]} 16. Qxd3 {[%clk 0:02:40]}  a5 {[%clk 0:02:36]} 17. O-O {[%clk 0:02:38]}  cxd5 {[%clk 0:02:35]} 18. cxd5 {[%clk 0:02:37]}  Ba6 {[%clk 0:02:35]} 19. b5 {[%clk 0:02:37]}  Bc8 {[%clk 0:02:31]} 20. Rfc1 {[%clk 0:02:28]}  Nd7 {[%clk 0:02:29]} 21. Nb3 {[%clk 0:02:24]}  a4 {[%clk 0:02:27]} 22. Nbd2 {[%clk 0:02:22]}  Nc5 {[%clk 0:02:27]} 23. Qe3 {[%clk 0:02:22]}  f5 {[%clk 0:02:25]} 24. exf5 {[%clk 0:02:07]}  Bxf5 {[%clk 0:02:24]} 25. Re1 {[%clk 0:01:48]}  Qf6 {[%clk 0:02:16]} 26. Nc4 {[%clk 0:01:42]}  Rab8 {[%clk 0:02:14]} 27. Nfd2 {[%clk 0:01:40]}  Bd3 {[%clk 0:01:44]} 28. Nb2 {[%clk 0:01:31]}  Bxb5 {[%clk 0:01:38]} 29. f3 {[%clk 0:01:25]}  Qg6 {[%clk 0:01:33]} 30. g4 {[%clk 0:01:20]}  Rf4 {[%clk 0:01:30]} 31. Rac1 {[%clk 0:01:07]}  Rbf8 {[%clk 0:01:24]} 32. Ndc4 {[%clk 0:01:05]}  e4 {[%clk 0:01:19]} 33. Rf1 {[%clk 0:00:54]}  exf3 {[%clk 0:01:19]} 34. gxf3 {[%clk 0:00:55]}  Nb3 {[%clk 0:01:18]} 35. Rc3 {[%clk 0:00:50]}  Nd4 {[%clk 0:01:15]} 36. Kg2 {[%clk 0:00:16]}  h5 {[%clk 0:00:46]} 37. Nd3 {[%clk 0:00:11]}  Rxg4+ {[%clk 0:00:38]} 38. fxg4 {[%clk 0:00:09]}  Qxg4+ {[%clk 0:00:39]} 39. Qg3 {[%clk 0:00:07]}  Qe4+ {[%clk 0:00:39]} 40. Kh2 {[%clk 0:00:03]}  Rxf1 {[%clk 0:00:38]} 41. Nf2 {[%clk 0:00:03]}  Qe2 {[%clk 0:00:37]} 42. Rc2 {[%clk 0:00:01]}  Nxc2 {[%clk 0:00:35]} 0-1


[Site "https://www.chess.com"]

[Event "Titled Tuesday Blitz January 18 2022"]
[White "Kashefi, Amir Hosein"]
[Black "Indjic, Aleksandar"]
[WhiteFideId "12557935"]
[BlackFideId "911925"]
[WhiteElo "2098"]
[BlackElo "2616"]
[Result "0-1"]
[Round "01"]
[TimeControl "180+1"]
[Date "2022.01.18"]
[WhiteClock "0:00:02"]
[BlackClock "0:01:15"]

1. d4 {[%clk 0:02:58]}  Nf6 {[%clk 0:02:59]} 2. Nf3 {[%clk 0:02:56]}  e6 {[%clk 0:02:59]} 3. g3 {[%clk 0:02:39]}  d5 {[%clk 0:02:56]} 4. Bg2 {[%clk 0:02:37]}  b5 {[%clk 0:02:56]} 5. O-O {[%clk 0:02:36]}  c5 {[%clk 0:02:55]} 6. c3 {[%clk 0:02:30]}  Nbd7 {[%clk 0:02:54]} 7. a3 {[%clk 0:02:26]}  Bb7 {[%clk 0:02:53]} 8. b4 {[%clk 0:02:23]}  c4 {[%clk 0:02:49]} 9. a4 {[%clk 0:02:20]}  a5 {[%clk 0:02:47]} 10. bxa5 {[%clk 0:02:13]}  b4 {[%clk 0:02:47]} 11. cxb4 {[%clk 0:02:09]}  Bxb4 {[%clk 0:02:47]} 12. Ba3 {[%clk 0:02:04]}  Qxa5 {[%clk 0:02:40]} 13. Ne5 {[%clk 0:02:01]}  Nxe5 {[%clk 0:02:31]} 14. dxe5 {[%clk 0:02:01]}  Nd7 {[%clk 0:02:30]} 15. Bxb4 {[%clk 0:01:39]}  Qxb4 {[%clk 0:02:28]} 16. e4 {[%clk 0:01:39]}  O-O {[%clk 0:02:09]} 17. exd5 {[%clk 0:01:37]}  exd5 {[%clk 0:02:09]} 18. Bxd5 {[%clk 0:01:28]}  Nxe5 {[%clk 0:02:07]} 19. Bxb7 {[%clk 0:01:02]}  Qxb7 {[%clk 0:02:08]} 20. Ra3 {[%clk 0:01:02]}  Rad8 {[%clk 0:02:03]} 21. Qe2 {[%clk 0:01:01]}  Nd3 {[%clk 0:01:50]} 22. Rc3 {[%clk 0:00:46]}  Rfe8 {[%clk 0:01:47]} 23. Qc2 {[%clk 0:00:43]}  Ne1 {[%clk 0:01:32]} 24. Qf5 {[%clk 0:00:22]}  g6 {[%clk 0:01:30]} 25. Qb5 {[%clk 0:00:22]}  Nf3+ {[%clk 0:01:27]} 26. Kh1 {[%clk 0:00:22]}  Qa8 {[%clk 0:01:26]} 27. Rxf3 {[%clk 0:00:03]}  Qxf3+ {[%clk 0:01:24]} 28. Kg1 {[%clk 0:00:04]}  c3 {[%clk 0:01:23]} 29. Qb3 {[%clk 0:00:03]}  Rc8 {[%clk 0:01:20]} 30. Qc2 {[%clk 0:00:02]}  Re2 {[%clk 0:01:18]} 31. Qc1 {[%clk 0:00:03]}  c2 {[%clk 0:01:16]} 32. Nd2 {[%clk 0:00:02]}  Qd3 {[%clk 0:01:15]} 0-1


[Site "https://www.chess.com"]

[Event "Titled Tuesday Blitz January 18 2022"]
[White "Klimciauskas, Domantas"]
[Black "Corrales Jimenez, Fidel"]
[WhiteFideId "12802999"]
[BlackFideId "3506690"]
[WhiteElo "2255"]
[BlackElo "2541"]
[Result "0-1"]
[Round "01"]
[TimeControl "180+1"]
[Date "2022.01.18"]
[WhiteClock "0:01:22"]
[BlackClock "0:02:13"]

1. d4 {[%clk 0:03:00]}  Nf6 {[%clk 0:02:44]} 2. Nf3 {[%clk 0:03:01]}  g6 {[%clk 0:02:44]} 3. g3 {[%clk 0:03:01]}  Bg7 {[%clk 0:02:44]} 4. Bg2 {[%clk 0:03:02]}  O-O {[%clk 0:02:45]} 5. O-O {[%clk 0:03:02]}  d5 {[%clk 0:02:45]} 6. c3 {[%clk 0:03:03]}  c5 {[%clk 0:02:42]} 7. dxc5 {[%clk 0:02:55]}  Nc6 {[%clk 0:02:41]} 8. Bf4 {[%clk 0:02:38]}  Ne4 {[%clk 0:02:39]} 9. Nbd2 {[%clk 0:02:34]}  Nxc5 {[%clk 0:02:37]} 10. Nb3 {[%clk 0:02:25]}  Ne4 {[%clk 0:02:36]} 11. Nbd4 {[%clk 0:02:25]}  Qb6 {[%clk 0:02:33]} 12. Qc1 {[%clk 0:02:11]}  Bg4 {[%clk 0:02:27]} 13. h3 {[%clk 0:02:07]}  Bxf3 {[%clk 0:02:23]} 14. exf3 {[%clk 0:02:07]}  Nxd4 {[%clk 0:02:22]} 15. cxd4 {[%clk 0:02:05]}  Nd6 {[%clk 0:02:21]} 16. Be5 {[%clk 0:02:05]}  Nf5 {[%clk 0:02:20]} 17. Rd1 {[%clk 0:01:54]}  Bxe5 {[%clk 0:02:15]} 18. dxe5 {[%clk 0:01:53]}  Nxg3 {[%clk 0:02:15]} 19. Qe3 {[%clk 0:01:35]}  d4 {[%clk 0:02:14]} 20. Qe4 {[%clk 0:01:22]}  Nxe4 {[%clk 0:02:13]} 0-1


[Site "https://www.chess.com"]

[Event "Titled Tuesday Blitz January 18 2022"]
[White "Koelle, Tobias"]
[Black "Bluebaum, Matthias"]
[WhiteFideId "16207378"]
[BlackFideId "24651516"]
[WhiteElo "2541"]
[BlackElo "2550"]
[Result "0-1"]
[Round "01"]
[TimeControl "180+1"]
[Date "2022.01.18"]
[WhiteClock "0:00:11"]
[BlackClock "0:00:59"]

1. d4 {[%clk 0:02:58]}  Nf6 {[%clk 0:02:59]} 2. c4 {[%clk 0:02:53]}  e6 {[%clk 0:02:58]} 3. Bg5 {[%clk 0:02:53]}  c5 {[%clk 0:02:54]} 4. d5 {[%clk 0:02:37]}  h6 {[%clk 0:02:45]} 5. Bf4 {[%clk 0:02:32]}  d6 {[%clk 0:02:42]} 6. Nc3 {[%clk 0:02:30]}  e5 {[%clk 0:02:42]} 7. Bd2 {[%clk 0:02:28]}  e4 {[%clk 0:02:42]} 8. g3 {[%clk 0:02:27]}  Bf5 {[%clk 0:02:41]} 9. Bg2 {[%clk 0:02:27]}  Nbd7 {[%clk 0:02:41]} 10. b3 {[%clk 0:02:12]}  Qe7 {[%clk 0:02:36]} 11. Nh3 {[%clk 0:02:03]}  g5 {[%clk 0:02:35]} 12. O-O {[%clk 0:02:01]}  Bg7 {[%clk 0:02:34]} 13. Rc1 {[%clk 0:02:00]}  a6 {[%clk 0:02:34]} 14. Kh1 {[%clk 0:02:00]}  O-O {[%clk 0:02:27]} 15. Ng1 {[%clk 0:01:47]}  b5 {[%clk 0:02:27]} 16. h3 {[%clk 0:01:32]}  Ne5 {[%clk 0:02:23]} 17. Qc2 {[%clk 0:01:17]}  bxc4 {[%clk 0:01:43]} 18. Nxe4 {[%clk 0:01:16]}  Nxe4 {[%clk 0:01:43]} 19. Bxe4 {[%clk 0:01:17]}  cxb3 {[%clk 0:01:44]} 20. axb3 {[%clk 0:01:16]}  Bxe4+ {[%clk 0:01:40]} 21. Qxe4 {[%clk 0:01:17]}  f5 {[%clk 0:01:41]} 22. Qc2 {[%clk 0:01:12]}  f4 {[%clk 0:01:40]} 23. Bc3 {[%clk 0:01:06]}  Qf7 {[%clk 0:01:34]} 24. Qd1 {[%clk 0:00:46]}  Rab8 {[%clk 0:01:32]} 25. Ra1 {[%clk 0:00:44]}  fxg3 {[%clk 0:01:32]} 26. fxg3 {[%clk 0:00:43]}  Qxf1 {[%clk 0:01:32]} 27. Qxf1 {[%clk 0:00:43]}  Rxf1 {[%clk 0:01:32]} 28. Rxf1 {[%clk 0:00:44]}  Rxb3 {[%clk 0:01:33]} 29. Bxe5 {[%clk 0:00:43]}  Bxe5 {[%clk 0:01:34]} 30. Nf3 {[%clk 0:00:43]}  Bxg3 {[%clk 0:01:32]} 31. Ra1 {[%clk 0:00:43]}  Rb6 {[%clk 0:01:32]} 32. Nd2 {[%clk 0:00:43]}  Rb2 {[%clk 0:01:29]} 33. Nc4 {[%clk 0:00:42]}  Rc2 {[%clk 0:01:27]} 34. Ne3 {[%clk 0:00:40]}  Rxe2 {[%clk 0:01:26]} 35. Nf5 {[%clk 0:00:41]}  Re1+ {[%clk 0:01:25]} 36. Rxe1 {[%clk 0:00:40]}  Bxe1 {[%clk 0:01:26]} 37. Nxd6 {[%clk 0:00:40]}  a5 {[%clk 0:01:23]} 38. Nb7 {[%clk 0:00:26]}  Kf7 {[%clk 0:01:22]} 39. Nxc5 {[%clk 0:00:25]}  Bb4 {[%clk 0:01:21]} 40. Na4 {[%clk 0:00:23]}  Ke7 {[%clk 0:01:22]} 41. Kg2 {[%clk 0:00:23]}  Kd6 {[%clk 0:01:22]} 42. Kf3 {[%clk 0:00:24]}  Kxd5 {[%clk 0:01:20]} 43. Kg4 {[%clk 0:00:24]}  Bd2 {[%clk 0:01:19]} 44. Kh5 {[%clk 0:00:25]}  Kc4 {[%clk 0:01:03]} 45. Nb6+ {[%clk 0:00:25]}  Kb3 {[%clk 0:01:02]} 46. Nd7 {[%clk 0:00:25]}  a4 {[%clk 0:01:01]} 47. Nc5+ {[%clk 0:00:25]}  Kb4 {[%clk 0:01:01]} 48. Nd3+ {[%clk 0:00:25]}  Kc4 {[%clk 0:01:00]} 49. Nb2+ {[%clk 0:00:24]}  Kb3 {[%clk 0:01:01]} 50. Nxa4 {[%clk 0:00:24]}  Kxa4 {[%clk 0:01:02]} 51. h4 {[%clk 0:00:19]}  Kb3 {[%clk 0:01:02]} 52. Kg4 {[%clk 0:00:19]}  Kc4 {[%clk 0:01:02]} 53. Kf3 {[%clk 0:00:18]}  Kd5 {[%clk 0:01:01]} 54. Ke2 {[%clk 0:00:17]}  Bb4 {[%clk 0:01:00]} 55. Kf3 {[%clk 0:00:18]}  Ke5 {[%clk 0:01:01]} 56. Kg4 {[%clk 0:00:19]}  Bd2 {[%clk 0:01:01]} 57. Kh5 {[%clk 0:00:11]}  Kf5 {[%clk 0:00:59]} 58. hxg5 {[%clk 0:00:11]}  hxg5 {[%clk 0:00:59]} 0-1


[Site "https://www.chess.com"]

[Event "Titled Tuesday Blitz January 18 2022"]
[White "Koridze, Lile"]
[Black "Djordjevic, Vuk"]
[WhiteFideId "13612514"]
[BlackFideId "902098"]
[WhiteElo "1978"]
[BlackElo "2463"]
[Result "0-1"]
[Round "01"]
[TimeControl "180+1"]
[Date "2022.01.18"]
[WhiteClock "0:02:06"]
[BlackClock "0:01:10"]

1. d4 {[%clk 0:03:00]}  Nf6 {[%clk 0:02:57]} 2. c4 {[%clk 0:03:01]}  e6 {[%clk 0:02:58]} 3. Nf3 {[%clk 0:02:59]}  b6 {[%clk 0:02:58]} 4. g3 {[%clk 0:03:00]}  Ba6 {[%clk 0:02:58]} 5. b3 {[%clk 0:02:59]}  Bb4+ {[%clk 0:02:55]} 6. Bd2 {[%clk 0:03:00]}  Be7 {[%clk 0:02:54]} 7. Bg2 {[%clk 0:02:58]}  c6 {[%clk 0:02:54]} 8. O-O {[%clk 0:02:57]}  d5 {[%clk 0:02:55]} 9. cxd5 {[%clk 0:02:53]}  cxd5 {[%clk 0:02:44]} 10. Nc3 {[%clk 0:02:51]}  O-O {[%clk 0:02:40]} 11. Rc1 {[%clk 0:02:47]}  Ba3 {[%clk 0:02:00]} 12. Rb1 {[%clk 0:02:46]}  Nc6 {[%clk 0:01:59]} 13. Bg5 {[%clk 0:02:43]}  Rc8 {[%clk 0:01:54]} 14. Qd2 {[%clk 0:02:36]}  Bb4 {[%clk 0:01:48]} 15. Rfc1 {[%clk 0:02:35]}  Ne4 {[%clk 0:01:37]} 16. Bxd8 {[%clk 0:02:34]}  Nxd2 {[%clk 0:01:37]} 17. Nxd2 {[%clk 0:02:35]}  Nxd4 {[%clk 0:01:24]} 18. e3 {[%clk 0:02:27]}  Bxc3 {[%clk 0:01:21]} 19. exd4 {[%clk 0:02:27]}  Rfxd8 {[%clk 0:01:19]} 20. Nf3 {[%clk 0:02:20]}  Bd3 {[%clk 0:01:19]} 21. Bf1 {[%clk 0:02:17]}  Bxb1 {[%clk 0:01:15]} 22. Rxb1 {[%clk 0:02:17]}  Bb4 {[%clk 0:01:16]} 23. Be2 {[%clk 0:02:14]}  Rc2 {[%clk 0:01:16]} 24. Kf1 {[%clk 0:02:10]}  Rdc8 {[%clk 0:01:13]} 25. Ne5 {[%clk 0:02:07]}  Bd6 {[%clk 0:01:10]} 26. Nd3 {[%clk 0:02:06]}  Rxa2 {[%clk 0:01:10]} 0-1


[Site "https://www.chess.com"]

[Event "Titled Tuesday Blitz January 18 2022"]
[White "Kovalev, Vladislav"]
[Black "Wahedi, Ahmad Siar"]
[WhiteFideId "13504398"]
[BlackFideId "4651260"]
[WhiteElo "2530"]
[BlackElo "2459"]
[Result "1-0"]
[Round "01"]
[TimeControl "180+1"]
[Date "2022.01.18"]
[WhiteClock "0:00:53"]
[BlackClock "0:00:27"]

1. e4 {[%clk 0:02:53]}  Nf6 {[%clk 0:03:00]} 2. e5 {[%clk 0:02:53]}  Nd5 {[%clk 0:03:00]} 3. d4 {[%clk 0:02:54]}  Nb6 {[%clk 0:03:00]} 4. Nf3 {[%clk 0:02:54]}  d5 {[%clk 0:03:00]} 5. Be2 {[%clk 0:02:55]}  Bg4 {[%clk 0:03:00]} 6. O-O {[%clk 0:02:55]}  e6 {[%clk 0:02:59]} 7. h3 {[%clk 0:02:51]}  Bh5 {[%clk 0:02:59]} 8. a3 {[%clk 0:02:44]}  c5 {[%clk 0:02:58]} 9. dxc5 {[%clk 0:02:42]}  Bxc5 {[%clk 0:02:58]} 10. b4 {[%clk 0:02:43]}  Be7 {[%clk 0:02:57]} 11. Bb2 {[%clk 0:02:44]}  Nc6 {[%clk 0:02:56]} 12. Nbd2 {[%clk 0:02:44]}  Na4 {[%clk 0:02:50]} 13. Qc1 {[%clk 0:02:30]}  O-O {[%clk 0:02:39]} 14. c4 {[%clk 0:02:23]}  Rc8 {[%clk 0:02:37]} 15. Qc2 {[%clk 0:01:57]}  Nxb2 {[%clk 0:02:27]} 16. Qxb2 {[%clk 0:01:58]}  Qd7 {[%clk 0:01:48]} 17. Rfd1 {[%clk 0:01:47]}  Rfd8 {[%clk 0:01:47]} 18. Rac1 {[%clk 0:01:34]}  Qc7 {[%clk 0:01:38]} 19. cxd5 {[%clk 0:01:22]}  Rxd5 {[%clk 0:01:28]} 20. b5 {[%clk 0:01:17]}  Bxf3 {[%clk 0:01:05]} 21. Bxf3 {[%clk 0:01:12]}  Qb6 {[%clk 0:00:39]} 22. Bxd5 {[%clk 0:01:06]}  exd5 {[%clk 0:00:36]} 23. Qb1 {[%clk 0:00:56]}  Bxa3 {[%clk 0:00:31]} 24. bxc6 {[%clk 0:00:54]}  Bxc1 {[%clk 0:00:27]} 25. Qxb6 {[%clk 0:00:52]}  axb6 {[%clk 0:00:27]} 26. cxb7 {[%clk 0:00:53]} 1-0


[Site "https://www.chess.com"]

[Event "Titled Tuesday Blitz January 18 2022"]
[White "Kravtsiv, Martyn"]
[Black "Claridge-Hansen, William"]
[WhiteFideId "14113147"]
[BlackFideId "422509"]
[WhiteElo "2694"]
[BlackElo "2261"]
[Result "0-1"]
[Round "01"]
[TimeControl "180+1"]
[Date "2022.01.18"]
[WhiteClock "0:00:02"]
[BlackClock "0:00:08"]

1. e4 {[%clk 0:03:00]}  d5 {[%clk 0:02:56]} 2. exd5 {[%clk 0:02:59]}  Qxd5 {[%clk 0:02:55]} 3. Nc3 {[%clk 0:02:59]}  Qd6 {[%clk 0:02:55]} 4. Bc4 {[%clk 0:02:54]}  Nf6 {[%clk 0:02:53]} 5. Nge2 {[%clk 0:02:52]}  a6 {[%clk 0:02:53]} 6. d3 {[%clk 0:02:48]}  b5 {[%clk 0:02:53]} 7. Bb3 {[%clk 0:02:48]}  e6 {[%clk 0:02:50]} 8. O-O {[%clk 0:02:38]}  Bb7 {[%clk 0:02:49]} 9. Ng3 {[%clk 0:02:34]}  Nbd7 {[%clk 0:02:41]} 10. a4 {[%clk 0:02:26]}  b4 {[%clk 0:02:35]} 11. Nce4 {[%clk 0:02:26]}  Nxe4 {[%clk 0:02:13]} 12. Nxe4 {[%clk 0:02:24]}  Qc6 {[%clk 0:02:07]} 13. f3 {[%clk 0:02:11]}  Nc5 {[%clk 0:02:03]} 14. Nxc5 {[%clk 0:02:09]}  Bxc5+ {[%clk 0:02:03]} 15. Kh1 {[%clk 0:02:09]}  O-O {[%clk 0:01:44]} 16. a5 {[%clk 0:02:08]}  Bd4 {[%clk 0:01:26]} 17. Qe1 {[%clk 0:02:06]}  Qd6 {[%clk 0:01:19]} 18. Bc4 {[%clk 0:01:47]}  c5 {[%clk 0:01:14]} 19. c3 {[%clk 0:01:46]}  bxc3 {[%clk 0:01:11]} 20. bxc3 {[%clk 0:01:47]}  Bf6 {[%clk 0:01:12]} 21. Be3 {[%clk 0:01:46]}  Bd5 {[%clk 0:01:10]} 22. Rb1 {[%clk 0:01:37]}  Bxc4 {[%clk 0:01:05]} 23. dxc4 {[%clk 0:01:38]}  Rfb8 {[%clk 0:01:04]} 24. Qf2 {[%clk 0:01:37]}  Be7 {[%clk 0:00:54]} 25. Qc2 {[%clk 0:01:24]}  Rxb1 {[%clk 0:00:50]} 26. Rxb1 {[%clk 0:01:25]}  Rb8 {[%clk 0:00:50]} 27. Kg1 {[%clk 0:01:10]}  h6 {[%clk 0:00:40]} 28. Rxb8+ {[%clk 0:01:01]}  Qxb8 {[%clk 0:00:40]} 29. Qe4 {[%clk 0:01:01]}  Qb3 {[%clk 0:00:33]} 30. Kf2 {[%clk 0:00:32]}  Qa2+ {[%clk 0:00:25]} 31. Kg3 {[%clk 0:00:24]}  Qxa5 {[%clk 0:00:25]} 32. Qa8+ {[%clk 0:00:18]}  Kh7 {[%clk 0:00:24]} 33. Qe4+ {[%clk 0:00:18]}  g6 {[%clk 0:00:23]} 34. Qf4 {[%clk 0:00:15]}  Kg8 {[%clk 0:00:12]} 35. Qb8+ {[%clk 0:00:15]}  Qd8 {[%clk 0:00:12]} 36. Qxd8+ {[%clk 0:00:13]}  Bxd8 {[%clk 0:00:13]} 37. Bxc5 {[%clk 0:00:14]}  Bf6 {[%clk 0:00:13]} 38. Bb4 {[%clk 0:00:09]}  Be5+ {[%clk 0:00:12]} 39. f4 {[%clk 0:00:09]}  Bc7 {[%clk 0:00:12]} 40. Kf3 {[%clk 0:00:10]}  f5 {[%clk 0:00:11]} 41. g3 {[%clk 0:00:09]}  Kf7 {[%clk 0:00:11]} 42. h4 {[%clk 0:00:08]}  e5 {[%clk 0:00:11]} 43. fxe5 {[%clk 0:00:07]}  Bxe5 {[%clk 0:00:12]} 44. c5 {[%clk 0:00:07]}  Ke6 {[%clk 0:00:10]} 45. c4 {[%clk 0:00:08]}  Bc7 {[%clk 0:00:10]} 46. Bd2 {[%clk 0:00:08]}  h5 {[%clk 0:00:05]} 47. Bf4 {[%clk 0:00:07]}  Bxf4 {[%clk 0:00:03]} 48. gxf4 {[%clk 0:00:06]}  Kd7 {[%clk 0:00:02]} 49. Ke3 {[%clk 0:00:07]}  Kc6 {[%clk 0:00:03]} 50. Kd4 {[%clk 0:00:07]}  a5 {[%clk 0:00:04]} 51. Kc3 {[%clk 0:00:02]}  Kxc5 {[%clk 0:00:04]} 52. Kd3 {[%clk 0:00:03]}  a4 {[%clk 0:00:04]} 53. Kc3 {[%clk 0:00:03]}  a3 {[%clk 0:00:05]} 54. Kb3 {[%clk 0:00:03]}  a2 {[%clk 0:00:06]} 55. Kxa2 {[%clk 0:00:03]}  Kxc4 {[%clk 0:00:07]} 56. Kb2 {[%clk 0:00:02]}  Kd4 {[%clk 0:00:08]} 0-1


[Site "https://www.chess.com"]

[Event "Titled Tuesday Blitz January 18 2022"]
[White "Lovkov, Roman"]
[Black "Hoffmann, Asa"]
[WhiteFideId "4157389"]
[BlackFideId "2001470"]
[WhiteElo "2371"]
[BlackElo "2117"]
[Result "1-0"]
[Round "01"]
[TimeControl "180+1"]
[Date "2022.01.18"]
[WhiteClock "0:00:15"]
[BlackClock "0:00:13"]

1. e4 {[%clk 0:03:00]}  d6 {[%clk 0:02:55]} 2. d4 {[%clk 0:03:00]}  Nf6 {[%clk 0:02:54]} 3. Nc3 {[%clk 0:02:56]}  c6 {[%clk 0:02:54]} 4. Nf3 {[%clk 0:02:55]}  Bg4 {[%clk 0:02:53]} 5. h3 {[%clk 0:02:52]}  Bh5 {[%clk 0:02:52]} 6. g4 {[%clk 0:02:50]}  Bg6 {[%clk 0:02:52]} 7. Bd3 {[%clk 0:02:50]}  e6 {[%clk 0:02:52]} 8. Qe2 {[%clk 0:02:50]}  d5 {[%clk 0:02:52]} 9. e5 {[%clk 0:02:47]}  Nfd7 {[%clk 0:02:51]} 10. O-O {[%clk 0:02:21]}  c5 {[%clk 0:02:51]} 11. Bg5 {[%clk 0:02:15]}  Qb6 {[%clk 0:02:48]} 12. Na4 {[%clk 0:01:33]}  Qc7 {[%clk 0:02:44]} 13. dxc5 {[%clk 0:01:26]}  Nxc5 {[%clk 0:02:40]} 14. Nxc5 {[%clk 0:01:26]}  Bxc5 {[%clk 0:02:39]} 15. Kg2 {[%clk 0:01:19]}  Nc6 {[%clk 0:02:38]} 16. Rfe1 {[%clk 0:01:18]}  O-O {[%clk 0:02:34]} 17. h4 {[%clk 0:01:18]}  Rac8 {[%clk 0:02:25]} 18. h5 {[%clk 0:01:16]}  Bxd3 {[%clk 0:02:24]} 19. cxd3 {[%clk 0:01:17]}  h6 {[%clk 0:02:18]} 20. Bf4 {[%clk 0:01:11]}  Nd4 {[%clk 0:02:15]} 21. Nxd4 {[%clk 0:01:09]}  Bxd4 {[%clk 0:02:15]} 22. Rac1 {[%clk 0:01:08]}  Qb6 {[%clk 0:02:14]} 23. b3 {[%clk 0:01:06]}  Rc6 {[%clk 0:02:11]} 24. g5 {[%clk 0:01:02]}  hxg5 {[%clk 0:02:05]} 25. Bxg5 {[%clk 0:01:03]}  Rfc8 {[%clk 0:02:04]} 26. h6 {[%clk 0:00:59]}  Rxc1 {[%clk 0:01:57]} 27. Bxc1 {[%clk 0:00:59]}  g6 {[%clk 0:01:44]} 28. Qf3 {[%clk 0:00:58]}  Qd8 {[%clk 0:01:40]} 29. h7+ {[%clk 0:00:52]}  Kh8 {[%clk 0:01:20]} 30. Qxf7 {[%clk 0:00:49]}  Bxe5 {[%clk 0:01:07]} 31. Rxe5 {[%clk 0:00:46]}  Rxc1 {[%clk 0:01:03]} 32. Qxg6 {[%clk 0:00:31]}  Rc7 {[%clk 0:00:53]} 33. Rg5 {[%clk 0:00:30]}  Rxh7 {[%clk 0:00:49]} 34. Rg4 {[%clk 0:00:30]}  Qf8 {[%clk 0:00:39]} 35. Qxe6 {[%clk 0:00:28]}  Rh2+ {[%clk 0:00:20]} 36. Kxh2 {[%clk 0:00:28]}  Qxf2+ {[%clk 0:00:20]} 37. Rg2 {[%clk 0:00:22]}  Qf4+ {[%clk 0:00:17]} 38. Kh3 {[%clk 0:00:20]}  Qf3+ {[%clk 0:00:17]} 39. Rg3 {[%clk 0:00:20]}  Qh5+ {[%clk 0:00:14]} 40. Kg2 {[%clk 0:00:20]}  Qe2+ {[%clk 0:00:13]} 41. Qxe2 {[%clk 0:00:15]} 1-0


[Site "https://www.chess.com"]